bitfinex-derivatives/quotes_BTCF0:USTF0_20250406
["timestamp","ask_amount","ask_price","bid_price","bid_amount"]
[1743917073211,4e-08,83531.0,83530.0,0.946254]
[1743917074125,4e-08,83531.0,83530.0,1.3004819]
[1743917074527,4e-08,83531.0,83530.0,1.2954819]
[1743917074725,4e-08,83531.0,83530.0,1.3004819]
[1743917076220,4e-08,83531.0,83530.0,1.2954819]
[1743917076420,4e-08,83531.0,83530.0,1.3014819]
[1743917080728,4e-08,83531.0,83530.0,1.2954819]
[1743917080929,4e-08,83531.0,83530.0,1.3004819]
[1743917087131,4e-08,83531.0,83530.0,1.0704819]
[1743917087332,4e-08,83531.0,83530.0,1.3304819]
[1743917089047,0.03320004,83531.0,83530.0,1.3304819]
[1743917092338,0.06590004,83531.0,83530.0,1.3304819]
[1743917093839,0.03320004,83531.0,83530.0,1.3304819]
[1743917095342,0.06460004,83531.0,83530.0,1.3304819]
[1743917095543,0.06460004,83531.0,83530.0,1.2993819]
[1743917099642,0.06460004,83531.0,83530.0,1.2685819]
[1743917103645,0.06460004,83531.0,83530.0,1.0085819]
[1743917103841,0.06460004,83531.0,83530.0,0.8097819]
[1743917106749,0.06460004,83531.0,83530.0,0.455554]
[1743917113756,0.06460004,83531.0,83530.0,0.487754]
[1743917115964,0.06460004,83531.0,83530.0,0.717754]
[1743917116166,0.06460004,83531.0,83530.0,0.487754]
[1743917116868,0.06460004,83531.0,83530.0,0.686554]
[1743917125868,0.06460004,83531.0,83530.0,1.04501296]
[1743917126073,0.06460004,83531.0,83530.0,1.07761296]
[1743917126371,0.06460004,83531.0,83530.0,1.43841296]
[1743917127268,0.06460004,83531.0,83530.0,0.71681296]
[1743917127471,0.06460004,83531.0,83530.0,1.43841296]
[1743917127669,0.06460004,83531.0,83530.0,0.71681296]
[1743917127859,0.06460004,83531.0,83530.0,1.43841296]
[1743917128770,0.06460004,83531.0,83530.0,0.71681296]
[1743917129272,0.06460004,83531.0,83530.0,1.079954]
[1743917130081,4e-08,83531.0,83530.0,1.079954]
[1743917132771,4e-08,83531.0,83530.0,0.358354]
[1743917132972,4e-08,83531.0,83530.0,1.43841296]
[1743917136576,4e-08,83531.0,83530.0,1.43379987]
[1743917137962,4e-08,83531.0,83530.0,1.40119987]
[1743917138774,4e-08,83531.0,83530.0,0.67959987]
[1743917138976,4e-08,83531.0,83530.0,1.40119987]
[1743917139878,4e-08,83531.0,83530.0,1.36899987]
[1743917141174,4e-08,83531.0,83530.0,0.64739987]
[1743917141381,4e-08,83531.0,83530.0,1.36899987]
[1743917148085,4e-08,83531.0,83530.0,1.40029987]
[1743917161184,4e-08,83531.0,83530.0,0.67869987]
[1743917161499,4e-08,83531.0,83530.0,1.17019987]
[1743917162084,4e-08,83531.0,83530.0,1.20129987]
[1743917162294,0.0618,83540.0,83530.0,1.20129987]
[1743917162603,0.05990835,83540.0,83539.0,0.444625]
[1743917162792,0.05990835,83540.0,83539.0,0.445585]
[1743917164500,0.05990835,83540.0,83539.0,0.448585]
[1743917165702,0.05990835,83540.0,83539.0,0.450585]
[1743917166099,0.05990835,83540.0,83539.0,0.481885]
[1743917169296,0.14078252,83541.0,83540.0,0.083824]
[1743917169297,0.10778252,83541.0,83540.0,0.083824]
[1743917169604,0.0304,83544.0,83543.0,0.083821]
[1743917169796,0.0304,83544.0,83543.0,0.084741]
[1743917169996,0.0626,83544.0,83543.0,0.084741]
[1743917170301,0.0626,83544.0,83543.0,0.115841]
[1743917170498,0.0626,83544.0,83543.0,0.148241]
[1743917172905,0.0626,83544.0,83543.0,0.151241]
[1743917173103,0.0626,83544.0,83543.0,0.512041]
[1743917176706,0.0626,83544.0,83543.0,0.79868328]
[1743917179099,0.0626,83544.0,83543.0,1.08868328]
[1743917179314,0.0626,83544.0,83543.0,0.79868328]
[1743917181716,0.0626,83544.0,83543.0,0.43788328]
[1743917181915,0.0626,83544.0,83543.0,0.79868328]
[1743917184812,0.0626,83544.0,83543.0,0.512041]
[1743917187121,0.0626,83544.0,83543.0,0.479641]
[1743917194228,0.0626,83544.0,83543.0,0.118841]
[1743917194426,0.0626,83544.0,83543.0,0.479641]
[1743917194721,0.0626,83544.0,83543.0,0.448541]
[1743917194913,0.26292,83544.0,83543.0,0.448541]
[1743917195118,0.11292,83544.0,83543.0,0.448541]
[1743917195825,0.19674,83544.0,83543.0,0.448541]
[1743917197129,0.19674,83544.0,83543.0,0.087741]
[1743917205423,0.19674,83544.0,83543.0,0.086821]
[1743917210133,0.19734001,83544.0,83543.0,0.086821]
[1743917217234,0.083838,83526.0,83525.0,0.3608]
[1743917217539,0.0838421,83522.0,83516.0,0.00016]
[1743917217841,0.4455621,83522.0,83521.0,0.35944518]
[1743917218243,0.45736166,83522.0,83521.0,0.35944518]
[1743917219843,0.45736166,83522.0,83521.0,0.36144518]
[1743917220935,0.45736166,83522.0,83521.0,0.00292]
[1743917221235,0.45736166,83522.0,83521.0,0.004]
[1743917223843,0.09656166,83522.0,83521.0,0.004]
[1743917224042,0.81816166,83522.0,83521.0,0.004]
[1743917224440,0.88446166,83522.0,83521.0,0.004]
[1743917227749,0.0838491,83515.0,83514.0,0.00913851]
[1743917227945,0.0838501,83514.0,83513.0,0.00017964]
[1743917228242,0.2276701,83514.0,83513.0,0.00109964]
[1743917229848,0.2276701,83514.0,83513.0,0.00409964]
[1743917230048,0.2276701,83514.0,83513.0,0.08795074]
[1743917230250,0.2276701,83514.0,83513.0,0.11975074]
[1743917231453,0.2276701,83514.0,83513.0,0.13277157]
[1743917233356,0.24567011,83514.0,83513.0,0.13277157]
[1743917237664,0.60647011,83514.0,83513.0,0.13277157]
[1743917238862,0.57387011,83514.0,83513.0,0.13277157]
[1743917239164,0.16275011,83514.0,83513.0,0.13277157]
[1743917239363,0.21303011,83514.0,83513.0,0.16377157]
[1743917239671,0.16275011,83514.0,83513.0,0.16377157]
[1743917239869,0.21303011,83514.0,83513.0,0.16377157]
[1743917246574,0.21303011,83514.0,83513.0,0.16449157]
[1743917247975,0.32031042,83514.0,83513.0,0.16449157]
[1743917248473,0.32031042,83514.0,83513.0,0.16049157]
[1743917248676,0.32031042,83514.0,83513.0,0.16149157]
[1743917249072,0.32031042,83514.0,83513.0,0.15949157]
[1743917250976,0.32031042,83514.0,83513.0,0.15877157]
[1743917251177,0.21303011,83514.0,83513.0,0.15877157]
[1743917251980,0.21303011,83514.0,83513.0,0.15949157]
[1743917252178,0.21303011,83514.0,83513.0,0.18999157]
[1743917252569,0.1141501,83514.0,83513.0,0.18999157]
[1743917252769,0.1644301,83514.0,83513.0,0.18999157]
[1743917253570,0.1959301,83514.0,83513.0,0.18999157]
[1743917255478,0.0618,83514.0,83513.0,0.12849157]
[1743917255671,0.11208,83514.0,83513.0,0.19209157]
[1743917255872,0.11208,83514.0,83513.0,0.19137157]
[1743917256381,0.11208,83514.0,83513.0,0.19209157]
[1743917258680,0.1959301,83514.0,83513.0,0.12849157]
[1743917261582,0.1959301,83514.0,83513.0,0.12777157]
[1743917261985,0.1959301,83514.0,83513.0,0.12849157]
[1743917265896,0.1959301,83514.0,83513.0,0.12777157]
[1743917266393,0.1959301,83514.0,83513.0,0.12849157]
[1743917271097,0.1959301,83514.0,83513.0,0.12777157]
[1743917271498,0.1959301,83514.0,83513.0,0.12849157]
[1743917272697,0.1959301,83514.0,83513.0,0.09669157]
[1743917276489,0.1959301,83514.0,83513.0,0.09597157]
[1743917276999,0.1959301,83514.0,83513.0,0.09669157]
[1743917277601,0.1456501,83514.0,83513.0,0.09669157]
[1743917277902,0.1959301,83514.0,83513.0,0.09669157]
[1743917280996,0.1959301,83514.0,83513.0,0.09597157]
[1743917281506,0.1959301,83514.0,83513.0,0.09669157]
[1743917281705,0.2287301,83514.0,83513.0,0.09669157]
[1743917285308,0.2286901,83514.0,83513.0,0.09669157]
[1743917286005,0.2286901,83514.0,83513.0,0.09597157]
[1743917286310,0.2286901,83514.0,83513.0,0.09669157]
[1743917290115,0.2286901,83514.0,83513.0,0.12869157]
[1743917291115,0.2286901,83514.0,83513.0,0.12797157]
[1743917291316,0.2286901,83514.0,83513.0,0.12869157]
[1743917291504,0.0946,83514.0,83513.0,0.12869157]
[1743917291812,0.14484,83514.0,83513.0,0.12869157]
[1743917292217,0.11204,83514.0,83513.0,0.12869157]
[1743917292406,0.11204,83514.0,83513.0,0.15879157]
[1743917293215,0.08054,83514.0,83513.0,0.15879157]
[1743917295213,0.0303,83514.0,83513.0,0.15879157]
[1743917295409,0.14331372,83515.0,83514.0,0.0838501]
[1743917295607,0.14331372,83515.0,83514.0,0.1503501]
[1743917295916,0.13923372,83515.0,83514.0,0.2003501]
[1743917296920,0.13923372,83515.0,83514.0,0.2013501]
[1743917297512,0.10785339,83516.0,83515.0,0.0838491]
[1743917297719,0.10785339,83516.0,83515.0,0.2302491]
[1743917299013,0.10785339,83516.0,83515.0,0.2312491]
[1743917299516,0.10785339,83516.0,83515.0,0.1812491]
[1743917299720,0.10785339,83516.0,83515.0,0.2312491]
[1743917299922,0.10785339,83516.0,83515.0,0.2322491]
[1743917301720,0.10777339,83516.0,83515.0,0.2322491]
[1743917301907,0.10777339,83516.0,83515.0,0.2329691]
[1743917302107,0.0328,83519.0,83518.0,0.0838461]
[1743917302311,0.0328,83519.0,83518.0,0.4956861]
[1743917303124,0.0328,83519.0,83518.0,0.5619861]
[1743917306720,0.0328,83519.0,83518.0,0.7607861]
[1743917306923,0.0328,83519.0,83518.0,0.5619861]
[1743917307923,0.0328,83519.0,83518.0,0.2011861]
[1743917308127,0.0328,83519.0,83518.0,0.5619861]
[1743917313114,0.0328,83519.0,83518.0,0.2011861]
[1743917313321,0.0328,83519.0,83518.0,0.9227861]
[1743917313521,0.0328,83519.0,83518.0,0.8897861]
[1743917317532,0.0328,83519.0,83518.0,0.9202861]
[1743917318333,0.0328,83519.0,83518.0,0.8897861]
[1743917319930,0.0328,83519.0,83518.0,1.17628542]
[1743917322242,0.0328,83519.0,83518.0,1.14298542]
[1743917324345,0.0328,83519.0,83518.0,0.8564861]
[1743917326147,0.0328,83519.0,83518.0,0.1348861]
[1743917326337,0.0328,83519.0,83518.0,0.8564861]
[1743917327543,0.0328,83519.0,83518.0,0.1348861]
[1743917327734,0.0328,83519.0,83518.0,0.8564861]
[1743917329145,0.0328,83519.0,83518.0,0.1348861]
[1743917329338,0.0328,83519.0,83518.0,0.8564861]
[1743917342765,0.0328,83519.0,83518.0,0.1348861]
[1743917342969,0.0328,83519.0,83518.0,0.8564861]
[1743917343468,0.0328,83519.0,83518.0,0.1348861]
[1743917343656,0.0328,83519.0,83518.0,0.8564861]
[1743917347566,0.033,83521.0,83518.0,0.8564861]
[1743917347768,0.10777339,83524.0,83523.0,0.083841]
[1743917347973,0.10777339,83524.0,83523.0,0.084761]
[1743917348162,0.10777339,83524.0,83523.0,0.149361]
[1743917349771,0.10877339,83524.0,83523.0,0.149361]
[1743917350766,0.001,83524.0,83523.0,0.149361]
[1743917352670,0.0314,83524.0,83523.0,0.149361]
[1743917353069,0.0314,83524.0,83523.0,0.199361]
[1743917361079,0.0314,83524.0,83523.0,0.168061]
[1743917364085,0.0314,83524.0,83523.0,0.889661]
[1743917379398,0.0314,83524.0,83523.0,0.168061]
[1743917379596,0.0314,83524.0,83523.0,0.889661]
[1743917381901,0.0314,83524.0,83523.0,1.22567633]
[1743917385105,0.0314,83524.0,83523.0,1.58433083]
[1743917389705,0.0314,83524.0,83523.0,1.22567633]
[1743917392308,0.0314,83524.0,83523.0,1.14237633]
[1743917394702,0.0314,83524.0,83523.0,0.78157633]
[1743917396204,0.0314,83524.0,83523.0,0.445561]
[1743917396608,0.0622,83524.0,83523.0,0.445561]
[1743917399815,0.0622,83524.0,83523.0,0.084761]
[1743917400113,0.14604,83524.0,83523.0,0.084761]
[1743917402816,0.0622,83524.0,83523.0,0.084761]
[1743917406309,0.0622,83524.0,83523.0,0.445561]
[1743917409020,0.0612,83524.0,83523.0,0.446561]
[1743917409421,0.0612,83524.0,83523.0,0.477961]
[1743917410423,0.0612,83524.0,83523.0,0.478961]
[1743917411010,0.0612,83524.0,83523.0,0.477961]
[1743917411313,0.0612,83524.0,83523.0,0.478961]
[1743917413525,0.0612,83524.0,83523.0,0.477961]
[1743917413721,0.0612,83524.0,83523.0,0.478961]
[1743917415127,0.0612,83524.0,83523.0,0.118161]
[1743917415425,0.0612,83524.0,83523.0,0.478961]
[1743917418727,0.0612,83524.0,83523.0,0.477961]
[1743917419027,0.0612,83524.0,83523.0,0.478961]
[1743917420122,0.0612,83524.0,83523.0,0.477961]
[1743917420323,0.0612,83524.0,83523.0,0.478961]
[1743917420629,0.0612,83524.0,83523.0,0.477961]
[1743917420828,0.0612,83524.0,83523.0,0.478961]
[1743917425922,0.0612,83524.0,83523.0,0.510661]
[1743917426333,0.0612,83524.0,83523.0,0.478961]
[1743917426530,0.0612,83524.0,83523.0,0.76585697]
[1743917427932,0.0612,83524.0,83523.0,0.76485697]
[1743917428133,0.0612,83524.0,83523.0,0.76585697]
[1743917430336,0.0612,83524.0,83523.0,0.478961]
[1743917435943,0.0612,83524.0,83523.0,0.447561]
[1743917437637,0.0612,83524.0,83523.0,0.446561]
[1743917437845,0.0612,83524.0,83523.0,0.447561]
[1743917443540,0.11144,83524.0,83523.0,0.479561]
[1743917444852,0.21916727,83524.0,83523.0,0.479561]
[1743917445737,0.16892727,83524.0,83523.0,0.479561]
[1743917448560,0.0612,83524.0,83523.0,0.479561]
[1743917452553,0.0612,83524.0,83523.0,0.118761]
[1743917452775,0.0612,83524.0,83523.0,0.479561]
[1743917462056,0.0612,83524.0,83523.0,0.478561]
[1743917462255,0.0612,83524.0,83523.0,0.479561]
[1743917467157,0.0612,83524.0,83523.0,0.447561]
[1743917468569,0.14504,83524.0,83523.0,0.447561]
[1743917469872,0.25276727,83524.0,83523.0,0.447561]
[1743917473573,0.14504,83524.0,83523.0,0.447561]
[1743917473764,0.0612,83524.0,83523.0,0.447561]
[1743917473969,0.0612,83524.0,83523.0,0.479561]
[1743917483569,0.11144,83524.0,83523.0,0.479561]
[1743917488587,0.11144,83524.0,83523.0,0.118761]
[1743917488881,0.11144,83524.0,83523.0,0.479561]
[1743917491288,0.11144,83524.0,83523.0,0.118761]
[1743917491478,0.11144,83524.0,83523.0,0.479561]
[1743917493977,0.11144,83524.0,83523.0,0.118761]
[1743917494187,0.11144,83524.0,83523.0,0.479561]
[1743917494776,0.11144,83524.0,83523.0,0.118761]
[1743917495179,0.11144,83524.0,83523.0,0.479561]
[1743917495985,0.11144,83524.0,83523.0,0.118761]
[1743917496176,0.11144,83524.0,83523.0,0.479561]
[1743917503293,0.11144,83524.0,83523.0,0.118761]
[1743917503490,0.11144,83524.0,83523.0,0.479561]
[1743917503995,0.11144,83524.0,83523.0,0.118761]
[1743917504386,0.11144,83524.0,83523.0,0.479561]
[1743917505894,0.11144,83524.0,83523.0,0.118761]
[1743917506087,0.11144,83524.0,83523.0,0.479561]
[1743917508897,0.11144,83524.0,83523.0,0.118761]
[1743917509199,0.11144,83524.0,83523.0,0.479561]
[1743917509497,0.11144,83524.0,83523.0,0.118761]
[1743917509698,0.11144,83524.0,83523.0,0.479561]
[1743917514997,0.11144,83524.0,83523.0,0.76646709]
[1743917520601,0.0308,83524.0,83523.0,0.76646709]
[1743917520796,0.14356633,83528.0,83527.0,0.083837]
[1743917521002,0.14356633,83528.0,83527.0,0.084757]
[1743917521202,0.14356633,83528.0,83527.0,0.1012971]
[1743917521397,0.20876633,83528.0,83527.0,0.117157]
[1743917521612,0.20876633,83528.0,83527.0,0.13369817]
[1743917521802,0.20876633,83528.0,83527.0,0.16479817]
[1743917522511,0.17626633,83528.0,83527.0,0.16479817]
[1743917522913,0.14050349,83528.0,83527.0,0.45170426]
[1743917523304,0.14050349,83528.0,83527.0,0.45169764]
[1743917523503,0.14050349,83528.0,83527.0,0.45169722]
[1743917524113,0.10780349,83528.0,83527.0,0.45169722]
[1743917524804,0.10780349,83528.0,83527.0,0.45169266]
[1743917525813,0.10780349,83528.0,83527.0,0.81249266]
[1743917526203,0.10780349,83528.0,83527.0,0.81270913]
[1743917528215,0.0333,83528.0,83527.0,0.52580304]
[1743917528413,8e-05,83529.0,83528.0,0.083836]
[1743917528610,8e-05,83529.0,83528.0,0.16148204]
[1743917528915,0.00017964,83530.0,83529.0,0.083835]
[1743917529111,0.00025964,83530.0,83529.0,0.10058104]
[1743917529319,0.00025964,83530.0,83529.0,0.19314104]
[1743917531215,0.00025964,83530.0,83529.0,0.47968336]
[1743917531715,0.00025964,83530.0,83529.0,0.47974895]
[1743917531916,0.03215964,83530.0,83529.0,0.47974895]
[1743917534223,0.03215964,83530.0,83529.0,1.20134895]
[1743917535319,0.03215964,83530.0,83529.0,1.20134573]
[1743917538821,0.03215964,83530.0,83529.0,0.91480341]
[1743917540820,0.03215964,83530.0,83529.0,0.91504443]
[1743917542327,0.03215964,83530.0,83529.0,0.19344443]
[1743917542525,0.03215964,83530.0,83529.0,0.91504443]
[1743917543129,0.03215964,83530.0,83529.0,1.20158675]
[1743917546327,0.03215964,83530.0,83529.0,0.91504443]
[1743917546522,0.03215964,83530.0,83529.0,0.85434443]
[1743917547332,0.03215964,83530.0,83529.0,0.13274443]
[1743917547534,0.03215964,83530.0,83529.0,0.85434443]
[1743917551531,0.03215964,83530.0,83529.0,0.837295]
[1743917551831,0.03215964,83530.0,83529.0,0.85436001]
[1743917553232,0.03215964,83530.0,83529.0,0.13276001]
[1743917553534,0.03215964,83530.0,83529.0,0.85436001]
[1743917554034,0.03215964,83530.0,83529.0,0.13276001]
[1743917554234,0.03215964,83530.0,83529.0,0.85436001]
[1743917557731,0.03215964,83530.0,83529.0,0.82346001]
[1743917557929,0.03215964,83530.0,83529.0,0.46266001]
[1743917558332,0.03215964,83530.0,83529.0,0.82127998]
[1743917558931,0.03215964,83530.0,83529.0,0.82114807]
[1743917561628,0.03215964,83530.0,83529.0,0.4625281]
[1743917562442,0.06495964,83530.0,83529.0,0.445595]
[1743917562635,0.06495964,83530.0,83529.0,0.46250973]
[1743917564339,0.06495964,83530.0,83529.0,0.46249753]
[1743917564838,0.21495964,83530.0,83529.0,0.46249753]
[1743917565643,0.06495964,83530.0,83529.0,0.46249753]
[1743917571655,0.06495964,83530.0,83529.0,0.46242677]
[1743917572249,0.14879364,83530.0,83529.0,0.46242677]
[1743917572648,0.06495964,83530.0,83529.0,0.46242677]
[1743917573755,0.06495964,83530.0,83529.0,0.10162677]
[1743917573949,0.14879364,83530.0,83529.0,0.10162677]
[1743917574950,0.14879364,83530.0,83529.0,0.084795]
[1743917575147,0.14879364,83530.0,83529.0,0.10145057]
[1743917575345,0.06495964,83530.0,83529.0,0.10145057]
[1743917577156,0.06495964,83530.0,83529.0,0.10146269]
[1743917578948,0.06495964,83530.0,83529.0,0.10158089]
[1743917584261,0.06495964,83530.0,83529.0,0.13238089]
[1743917585653,0.06495964,83530.0,83529.0,0.13243047]
[1743917586361,0.14879364,83530.0,83529.0,0.13243047]
[1743917587063,0.17259525,83530.0,83529.0,0.13243047]
[1743917587362,0.17259525,83530.0,83529.0,0.132432]
[1743917588763,0.17259525,83530.0,83529.0,0.13244204]
[1743917589264,0.17259525,83530.0,83529.0,0.13244209]
[1743917590568,0.06495964,83530.0,83529.0,0.13244209]
[1743917593470,0.06495964,83530.0,83529.0,0.34751206]
[1743917595469,0.14879364,83530.0,83529.0,0.34751206]
[1743917596571,0.14879364,83530.0,83529.0,0.3474999]
[1743917597368,0.14879364,83530.0,83529.0,0.13242993]
[1743917598270,0.14879364,83530.0,83529.0,0.115595]
[1743917598478,0.14879364,83530.0,83529.0,0.1324325]
[1743917599272,0.14879364,83530.0,83529.0,0.1016325]
[1743917600373,0.14879364,83530.0,83529.0,0.10163305]
[1743917603480,0.14879364,83530.0,83529.0,0.13463305]
[1743917604278,0.14879364,83530.0,83529.0,0.10163305]
[1743917604976,0.14879364,83530.0,83529.0,0.13183305]
[1743917608983,0.29235997,83530.0,83529.0,0.13183305]
[1743917609481,0.29235997,83530.0,83529.0,0.10163305]
[1743917611179,0.29235997,83530.0,83529.0,0.01779805]
[1743917612874,0.31031997,83530.0,83529.0,0.01779805]
[1743917613284,0.29235997,83530.0,83529.0,0.01779805]
[1743917613582,0.67111997,83530.0,83529.0,0.01779805]
[1743917614773,0.72151997,83530.0,83529.0,0.01779805]
[1743917616470,0.72151997,83530.0,83521.0,0.28687102]
[1743917616471,0.0838421,83522.0,83521.0,0.21517684]
[1743917616777,0.4446421,83522.0,83521.0,0.23198995]
[1743917617478,0.5072421,83522.0,83521.0,0.23198995]
[1743917617875,0.5072421,83522.0,83521.0,0.23298995]
[1743917618578,0.5072421,83522.0,83521.0,0.23398995]
[1743917620081,0.5072421,83522.0,83521.0,0.23462995]
[1743917620384,0.5078821,83522.0,83521.0,0.21781684]
[1743917621787,0.8686821,83522.0,83521.0,0.00264]
[1743917622085,0.8686821,83522.0,83521.0,0.002]
[1743917628491,0.8686821,83522.0,83521.0,0.01886599]
[1743917628881,0.8686821,83522.0,83521.0,0.10270909]
[1743917628882,0.9191621,83522.0,83521.0,0.10270909]
[1743917629095,0.8686821,83522.0,83521.0,0.01886599]
[1743917629285,0.9191221,83522.0,83521.0,0.10270909]
[1743917629491,0.9191221,83522.0,83521.0,0.01954599]
[1743917629790,0.9191221,83522.0,83521.0,0.10270909]
[1743917630788,0.9191221,83522.0,83521.0,0.01886599]
[1743917631189,0.9191221,83522.0,83521.0,0.01893589]
[1743917631584,0.9191221,83522.0,83521.0,0.05093589]
[1743917633094,0.9370821,83522.0,83521.0,0.05093589]
[1743917633394,0.9191221,83522.0,83521.0,0.05093589]
[1743917633595,0.9370821,83522.0,83521.0,0.05093589]
[1743917638495,0.8866421,83522.0,83521.0,0.05093589]
[1743917638693,0.9370421,83522.0,83521.0,0.05093589]
[1743917638995,0.9370421,83522.0,83521.0,0.13477899]
[1743917640097,1.08036016,83522.0,83521.0,0.13477899]
[1743917640397,1.08036016,83522.0,83521.0,0.13481922]
[1743917642897,1.02996016,83522.0,83521.0,0.13481922]
[1743917643196,1.08032016,83522.0,83521.0,0.05097612]
[1743917643599,1.08032016,83522.0,83521.0,0.05099578]
[1743917644897,0.9370021,83522.0,83521.0,0.05099578]
[1743917646001,0.9370021,83522.0,83521.0,0.13483888]
[1743917646403,0.8866421,83522.0,83521.0,0.13483888]
[1743917646701,0.9370021,83522.0,83521.0,0.13483888]
[1743917648701,1.11635833,83522.0,83521.0,0.13483888]
[1743917650203,1.06599833,83522.0,83521.0,0.13483888]
[1743917650407,1.11635833,83522.0,83521.0,0.13483888]
[1743917650795,1.11635833,83522.0,83521.0,0.13497315]
[1743917651299,1.11635833,83522.0,83521.0,0.16587315]
[1743917651803,0.9370021,83522.0,83521.0,0.16587315]
[1743917652998,0.9190421,83522.0,83521.0,0.16587315]
[1743917653204,0.9190421,83522.0,83521.0,0.16687315]
[1743917653598,0.9370021,83522.0,83521.0,0.16687315]
[1743917653805,0.8883421,83522.0,83521.0,0.16687315]
[1743917654006,0.8883421,83522.0,83521.0,0.19865315]
[1743917654207,0.8883421,83522.0,83521.0,0.19565315]
[1743917654401,0.9207421,83522.0,83521.0,0.19765315]
[1743917655009,0.9207421,83522.0,83521.0,0.19665315]
[1743917655209,0.9207421,83522.0,83521.0,0.19765315]
[1743917656300,0.9207421,83522.0,83521.0,0.19697315]
[1743917657008,0.9207421,83522.0,83521.0,0.11313005]
[1743917657208,0.9207421,83522.0,83521.0,0.08203005]
[1743917657809,0.9207421,83522.0,83521.0,0.05113005]
[1743917659912,0.9207421,83522.0,83521.0,0.05114424]
[1743917662916,0.9207421,83522.0,83521.0,0.05115308]
[1743917663618,1.15833696,83522.0,83521.0,0.05115308]
[1743917667318,0.97898073,83522.0,83521.0,0.05112399]
[1743917669715,0.92862073,83522.0,83521.0,0.05112399]
[1743917669913,0.97886073,83522.0,83521.0,0.05112399]
[1743917670116,0.92862073,83522.0,83521.0,0.05112399]
[1743917670316,0.97886073,83522.0,83521.0,0.05112399]
[1743917670716,0.92862073,83522.0,83521.0,0.05112399]
[1743917670919,0.97886073,83522.0,83521.0,0.05112399]
[1743917671105,0.92862073,83522.0,83521.0,0.01912399]
[1743917671310,0.97886073,83522.0,83521.0,0.01912399]
[1743917672906,0.99682073,83522.0,83521.0,0.01912399]
[1743917673516,0.0838471,83517.0,83513.0,0.22437731]
[1743917673710,0.4446501,83514.0,83513.0,0.22501731]
[1743917673911,0.4446501,83514.0,83505.0,0.0838585]
[1743917673912,0.0838561,83508.0,83507.0,0.28687102]
[1743917674125,0.14668931,83508.0,83507.0,0.28767102]
[1743917674317,0.14668931,83508.0,83507.0,0.28759102]
[1743917674510,0.0838631,83501.0,83500.0,0.35861997]
[1743917674817,0.08482311,83501.0,83500.0,0.36823253]
[1743917675322,0.08482311,83501.0,83479.0,0.0838847]
[1743917675323,0.0838762,83488.0,83479.0,0.0838847]
[1743917675512,0.041941,83483.0,83465.0,0.0315]
[1743917675815,0.03,83482.0,83474.0,0.0331]
[1743917676020,0.0838832,83481.0,83480.0,0.4446839]
[1743917676406,0.1466832,83481.0,83480.0,0.4446839]
[1743917676921,0.1466832,83481.0,83480.0,0.4476839]
[1743917677125,0.14788321,83481.0,83480.0,0.4476839]
[1743917678708,0.14788321,83481.0,83480.0,0.4496839]
[1743917680615,0.14788321,83481.0,83480.0,0.4585902]
[1743917681613,0.14788321,83481.0,83480.0,0.0977902]
[1743917682420,0.25527341,83481.0,83480.0,0.0977902]
[1743917685331,0.10859021,83481.0,83480.0,0.0977902]
[1743917685623,0.19247341,83481.0,83480.0,0.1776576]
[1743917685822,0.24275341,83481.0,83480.0,0.1776576]
[1743917686523,0.13536321,83481.0,83480.0,0.1776576]
[1743917691926,0.16866321,83481.0,83480.0,0.1776576]
[1743917693529,0.18666322,83481.0,83480.0,0.1776576]
[1743917695127,0.18666322,83481.0,83480.0,0.2088576]
[1743917695836,0.13638322,83481.0,83480.0,0.2088576]
[1743917696035,0.18666322,83481.0,83480.0,0.2088576]
[1743917696740,0.00120001,83481.0,83480.0,0.2088576]
[1743917696943,0.0838792,83485.0,83484.0,0.1258178]
[1743917697243,0.13527921,83485.0,83484.0,0.1429852]
[1743917697440,0.13527921,83485.0,83484.0,0.14296381]
[1743917697834,0.05140001,83485.0,83484.0,0.14296381]
[1743917698045,0.13527921,83485.0,83484.0,0.14296381]
[1743917698245,0.13527921,83485.0,83484.0,0.14396381]
[1743917699639,0.19737921,83485.0,83484.0,0.20566381]
[1743917699839,0.19737921,83485.0,83484.0,0.20766381]
[1743917700146,0.19737921,83485.0,83484.0,0.20766597]
[1743917701441,0.19737921,83485.0,83484.0,0.20768028]
[1743917702538,0.19737921,83485.0,83484.0,0.20769346]
[1743917703146,0.19737921,83485.0,83484.0,0.20769546]
[1743917703736,0.16547921,83485.0,83484.0,0.20769546]
[1743917703934,0.08160001,83485.0,83484.0,0.20769546]
[1743917704135,0.05140001,83485.0,83484.0,0.20769546]
[1743917704441,0.19458694,83485.0,83484.0,0.20769546]
[1743917705048,0.19458694,83485.0,83484.0,0.20787664]
[1743917705939,0.14430694,83485.0,83484.0,0.20787664]
[1743917706134,0.00017964,83489.0,83488.0,0.0838762]
[1743917706342,0.00017964,83489.0,83488.0,0.10123504]
[1743917707247,0.00017964,83489.0,83488.0,0.16533504]
[1743917707550,0.00017964,83489.0,83488.0,0.16633504]
[1743917708043,0.00017964,83489.0,83488.0,0.13353504]
[1743917708245,0.03097964,83489.0,83488.0,0.13353504]
[1743917708444,0.06257964,83489.0,83488.0,0.13353504]
[1743917708645,0.06257964,83489.0,83488.0,0.13362637]
[1743917710150,0.06257964,83489.0,83488.0,0.13422637]
[1743917710352,0.06345964,83489.0,83488.0,0.13422637]
[1743917713857,0.06345964,83489.0,83488.0,0.13415913]
[1743917721168,0.06345964,83489.0,83488.0,0.15092412]
[1743917723458,0.06345964,83489.0,83488.0,0.51172412]
[1743917724170,0.03185964,83489.0,83488.0,0.51172412]
[1743917724462,0.03097964,83489.0,83488.0,0.51172412]
[1743917726870,0.03097964,83489.0,83488.0,0.51229657]
[1743917728173,0.03097964,83489.0,83488.0,0.51229927]
[1743917728472,0.03097964,83489.0,83488.0,0.51224161]
[1743917729467,0.03097964,83489.0,83488.0,0.15144161]
[1743917729672,0.03177964,83489.0,83488.0,0.51224161]
[1743917729874,0.03097964,83489.0,83488.0,0.51224161]
[1743917731261,0.11485484,83489.0,83488.0,0.48094161]
[1743917731466,0.11485484,83489.0,83488.0,0.03626541]
[1743917731667,0.11485484,83489.0,83488.0,0.03566541]
[1743917733279,0.13285485,83489.0,83488.0,0.03566541]
[1743917733975,0.0838772,83487.0,83486.0,8e-05]
[1743917734272,0.0838772,83487.0,83486.0,0.0839582]
[1743917734780,0.1142772,83487.0,83486.0,8e-05]
[1743917735077,0.1150772,83487.0,83486.0,0.00168]
[1743917736781,0.35232011,83487.0,83486.0,0.00168]
[1743917736980,0.35232011,83487.0,83486.0,0.0016]
[1743917740088,0.17333644,83487.0,83486.0,0.0016]
[1743917743183,0.20473644,83487.0,83486.0,0.0016]
[1743917744191,0.1464772,83487.0,83486.0,0.0016]